bitfinex-derivatives/quotes_ETHF0:USTF0_20240924
["timestamp","ask_amount","ask_price","bid_price","bid_amount"]
[1727207501569,1.47904255,2647.0,2646.8,3.2078]
[1727207501570,1.85684255,2647.0,2646.8,3.2078]
[1727207502079,1.85684255,2647.0,2646.8,3.58563]
[1727207502080,1.47904255,2647.0,2646.8,3.58563]
[1727207502264,1.47904255,2646.9,2646.8,3.58562]
[1727207502472,1.47904255,2646.9,2646.8,3.2078]
[1727207502473,1.85685255,2646.9,2646.8,3.2078]
[1727207502670,0.37781,2646.9,2646.8,3.2078]
[1727207502871,1.97876616,2646.9,2646.8,3.2078]
[1727207503074,1.47999145,2646.9,2646.8,3.2078]
[1727207503261,0.3778,2647.0,2646.8,3.2078]
[1727207503262,2.35656616,2647.0,2646.8,3.2078]
[1727207503664,0.37781,2646.9,2646.8,3.2078]
[1727207503974,2.35657616,2646.9,2646.8,3.2078]
[1727207504372,0.37781,2646.9,2646.8,3.2078]
[1727207504586,1.97575349,2646.9,2646.8,3.2078]
[1727207505278,2.8512677,2647.0,2646.8,3.2078]
[1727207505478,0.37781,2646.9,2646.8,3.2078]
[1727207505778,2.4734577,2647.0,2646.8,3.2078]
[1727207505779,2.8512677,2647.0,2646.8,3.2078]
[1727207505970,1.97693984,2646.9,2646.8,3.58563]
[1727207506477,0.37775,2647.4,2647.1,0.37779]
[1727207506478,2.4734577,2647.2,2647.1,0.37779]
[1727207506779,1.48244581,2647.2,2647.1,3.58559]
[1727207507276,1.48244581,2647.3,2647.2,0.37777]
[1727207507577,0.98825686,2647.5,2647.2,6.9854]
[1727207507770,0.98825686,2647.5,2647.4,0.37774]
[1727207507972,0.98825686,2647.6,2647.5,0.37773]
[1727207508174,0.98825686,2647.6,2647.4,0.77104]
[1727207508382,0.98825686,2647.5,2647.4,0.77104]
[1727207508582,0.98825426,2647.5,2647.4,0.77104]
[1727207508877,0.98825426,2647.5,2647.4,4.54864]
[1727207509071,0.98825426,2647.6,2647.5,0.37773]
[1727207509271,1.48244581,2647.7,2647.5,0.37773]
[1727207509579,0.98810791,2647.6,2647.5,0.37773]
[1727207510873,1.48244581,2647.9,2647.7,1.32196]
[1727207511081,1.86002581,2648.6,2648.2,0.37762]
[1727207511266,1.48137006,2648.5,2648.1,0.37763]
[1727207511583,1.48137006,2648.6,2648.0,3.58545]
[1727207512069,1.48137006,2648.6,2648.1,0.37764]
[1727207512273,0.37759,2648.5,2648.3,3.2078]
[1727207513277,1.85387006,2648.7,2648.3,3.2078]
[1727207513470,0.37757,2648.6,2648.3,3.2078]
[1727207513980,1.85387006,2648.7,2648.3,3.2078]
[1727207514181,2.23144006,2648.7,2648.3,3.2078]
[1727207514370,0.75007,2648.7,2648.3,3.2078]
[1727207514770,0.37758,2648.6,2648.3,3.2078]
[1727207514971,0.75006,2648.7,2648.3,3.2078]
[1727207515184,0.75006,2648.7,2648.3,3.58541]
[1727207515373,0.75006,2648.7,2648.3,3.2078]
[1727207515776,0.75007,2648.7,2648.3,3.58541]
[1727207515981,0.3725,2648.7,2648.3,3.58541]
[1727207516175,0.3725,2648.7,2648.4,0.3776]
[1727207516371,0.3725,2648.7,2648.3,3.58541]
[1727207516576,0.75006,2648.7,2648.3,3.58541]
[1727207516775,0.75006,2648.7,2648.3,3.5854]
[1727207516975,0.75006,2648.7,2648.3,3.58541]
[1727207517776,0.75007,2648.7,2648.3,3.58541]
[1727207517981,0.3725,2648.7,2648.3,3.2078]
[1727207518173,0.3776,2648.4,2648.3,3.2078]
[1727207518781,0.37759,2648.5,2648.3,3.2078]
[1727207518979,0.3725,2648.7,2648.3,3.2078]
[1727207518980,0.37758,2648.6,2648.3,3.2078]
[1727207519175,0.37759,2648.5,2648.3,3.2078]
[1727207519878,0.3725,2648.7,2648.3,3.2078]
[1727207520087,0.3725,2648.7,2648.6,3.2078]
[1727207520789,0.75006,2648.7,2648.6,3.2078]
[1727207520978,0.3725,2648.7,2648.6,3.2078]
[1727207522091,0.37757,2648.6,2648.3,3.5854]
[1727207522286,0.37757,2648.6,2648.3,3.2078]
[1727207522588,0.75006,2648.7,2648.3,3.58541]
[1727207522780,0.75007,2648.7,2648.3,3.58541]
[1727207522981,0.75007,2648.7,2648.6,3.2078]
[1727207522982,0.3725,2648.7,2648.6,3.2078]
[1727207523379,0.75006,2648.7,2648.6,3.2078]
[1727207524082,0.75006,2648.7,2648.3,3.5854]
[1727207524283,0.3725,2648.7,2648.4,0.37759]
[1727207524478,0.75006,2648.7,2648.4,0.37759]
[1727207524679,0.3725,2648.7,2648.6,3.58537]
[1727207524881,0.3863,2649.1,2648.6,3.2078]
[1727207524882,1.86767006,2649.1,2648.6,3.2078]
[1727207525090,0.3891,2648.9,2648.6,3.2078]
[1727207525288,0.37755,2648.8,2648.6,3.2078]
[1727207525593,0.76663,2648.9,2648.6,3.2078]
[1727207526099,0.37755,2648.8,2648.6,3.2078]
[1727207526393,0.37756,2648.7,2648.6,3.2078]
[1727207526689,0.3891,2648.9,2648.6,3.2078]
[1727207526690,0.37755,2648.8,2648.6,3.2078]
[1727207527285,0.37755,2648.8,2648.4,0.3776]
[1727207527689,0.37757,2648.7,2648.3,3.58541]
[1727207527891,2.65,2648.8,2648.3,3.2078]
[1727207528089,2.65,2648.6,2648.3,3.2078]
[1727207528593,0.3776,2648.4,2648.3,3.2078]
[1727207530387,0.3776,2648.4,2647.7,3.4269]
[1727207530388,7.37001,2648.4,2647.7,3.9847]
[1727207530587,0.3755,2648.3,2648.1,0.37764]
[1727207530987,0.3755,2648.3,2648.0,3.58545]
[1727207531183,0.75859,2648.5,2648.2,0.37762]
[1727207531392,0.3755,2648.8,2648.3,5.8578]
[1727207531584,0.75304,2648.8,2648.7,3.2078]
[1727207531785,0.3755,2648.8,2648.4,3.6097]
[1727207531985,0.3755,2648.8,2648.7,3.2078]
[1727207533094,0.3675,2649.0,2648.7,3.2078]
[1727207533294,0.74502,2649.0,2648.7,3.2078]
[1727207533692,0.37754,2648.8,2648.7,3.2078]
[1727207534001,0.3675,2649.0,2648.7,3.2078]
[1727207534188,0.37754,2648.8,2648.7,3.2078]
[1727207534389,0.37753,2648.9,2648.7,3.2078]
[1727207534791,0.37758,2648.6,2648.3,3.2078]
[1727207534989,0.3979,2648.5,2648.3,3.2078]
[1727207535293,0.77549,2648.5,2648.3,3.2078]
[1727207535499,0.3776,2648.4,2648.3,3.2078]
[1727207535892,0.3979,2648.5,2648.3,3.2078]
[1727207535893,0.7755,2648.5,2648.3,3.2078]
[1727207536086,0.3776,2648.4,2648.3,3.2078]
[1727207536696,0.3979,2648.5,2648.3,3.2078]
[1727207536891,0.77549,2648.5,2648.3,3.2078]
[1727207538100,0.3776,2648.4,2648.3,3.2078]
[1727207538602,0.3979,2648.5,2648.3,3.2078]
[1727207538603,0.7755,2648.5,2648.3,3.2078]
[1727207539390,0.77549,2648.5,2648.3,3.2078]
[1727207539700,1.31131,2649.0,2648.4,0.37759]
[1727207539701,1.85892006,2648.8,2648.4,0.37759]
[1727207539904,2.34409441,2649.0,2648.3,3.5854]
[1727207539905,0.37756,2648.7,2648.3,3.5854]
[1727207540497,1.86887006,2648.9,2648.3,3.5854]
[1727207540692,0.37756,2648.8,2648.4,0.37759]
[1727207541007,0.37756,2648.7,2648.6,3.2078]
[1727207541793,1.86887006,2648.9,2648.6,3.2078]
[1727207541794,0.37755,2648.8,2648.6,3.2078]
[1727207542006,0.3875,2648.9,2648.6,3.2078]
[1727207542203,1.86887006,2648.9,2648.6,0.37757]
[1727207542395,1.86887006,2648.9,2648.6,3.58537]
[1727207542595,1.86887006,2648.9,2648.6,0.37757]
[1727207542808,1.86887006,2648.9,2648.6,3.58537]
[1727207543004,2.24640006,2648.9,2648.6,3.58537]
[1727207543398,1.86887006,2648.9,2648.6,3.58537]
[1727207543800,0.3875,2648.9,2648.6,3.58537]
[1727207544607,0.3875,2648.9,2648.6,3.58536]
[1727207544800,0.3875,2648.9,2648.6,3.2078]
[1727207544999,0.37755,2648.8,2648.6,3.2078]
[1727207545202,0.3875,2648.9,2648.4,0.394]
[1727207545414,0.3776,2648.4,2648.3,3.2078]
[1727207545904,0.3992,2648.5,2648.3,3.2078]
[1727207546409,0.3776,2648.4,2648.3,3.2078]
[1727207546601,0.3992,2648.5,2648.3,3.2078]
[1727207546800,0.3776,2648.4,2648.3,3.2078]
[1727207547510,0.77679,2648.5,2648.3,3.2078]
[1727207547803,0.3992,2648.5,2648.3,3.2078]
[1727207548011,0.37758,2648.6,2648.3,3.58541]
[1727207548201,0.3992,2648.8,2648.3,3.2078]
[1727207548403,0.37758,2648.6,2648.3,3.2078]
[1727207548602,0.37758,2648.6,2648.3,3.58541]
[1727207549012,0.37757,2648.7,2648.3,3.58541]
[1727207549203,0.77676,2648.8,2648.5,0.37758]
[1727207549407,0.3875,2648.9,2648.6,3.58537]
[1727207550311,0.3875,2648.9,2648.7,2.65]
[1727207550502,0.3875,2648.9,2648.7,3.02756]
[1727207550702,1.86887006,2648.9,2648.7,3.02756]
[1727207551013,1.86887006,2648.9,2648.7,0.37756]
[1727207551200,2.24640006,2648.9,2648.6,3.95236]
[1727207551400,1.85891006,2648.8,2648.6,3.5748]
[1727207551600,1.48137006,2648.8,2648.6,3.2078]
[1727207551805,0.37756,2648.7,2648.4,0.37759]
[1727207552015,1.85843098,2648.7,2648.4,0.37759]
[1727207552405,1.48087098,2648.6,2648.4,0.37759]
[1727207553098,1.48087098,2648.6,2648.3,5.8578]
[1727207553305,1.48087098,2648.7,2648.3,5.8578]
[1727207553513,1.48246695,2648.7,2648.6,3.2078]
[1727207553710,2.06459441,2649.3,2648.8,0.94387]
[1727207553903,1.97659441,2649.5,2649.3,0.37747]
[1727207554105,1.97659441,2649.6,2649.4,3.02746]
[1727207554307,1.97659441,2649.6,2649.5,3.2078]
[1727207554516,1.97659441,2649.8,2649.6,0.37742]
[1727207554709,1.97659441,2649.8,2649.6,3.02742]
[1727207554907,1.97659441,2649.8,2649.6,2.65]
[1727207555100,1.97659441,2649.7,2649.5,4.35304]
[1727207555305,1.97659441,2649.8,2649.5,4.35303]
[1727207556110,1.97659441,2649.8,2649.5,3.9756]
[1727207556312,1.97659441,2649.9,2649.7,2.65]
[1727207557217,1.97659441,2649.9,2649.6,0.37742]
[1727207557514,1.97659441,2649.8,2649.6,0.37742]
[1727207557719,1.97659441,2649.8,2649.7,3.02742]
[1727207558215,1.97659441,2649.8,2649.7,6.80102]
[1727207560020,1.97659441,2649.8,2649.7,4.15102]
[1727207562924,1.97659441,2649.8,2649.7,6.80102]
[1727207564224,1.97659441,2649.8,2649.7,4.15102]
[1727207564413,1.97659441,2649.8,2649.7,0.37742]
[1727207565320,0.3774,2649.8,2649.6,0.37742]
[1727207565522,0.37741,2649.8,2649.6,0.37742]
[1727207565717,0.3774,2649.8,2649.6,0.37742]
[1727207565914,0.3774,2649.8,2649.5,3.2078]
[1727207566115,0.3774,2649.8,2649.6,0.37743]
[1727207567114,2.33989441,2649.9,2649.5,3.2078]
[1727207567319,2.33989441,2649.9,2649.5,3.58524]
[1727207567320,0.37742,2649.7,2649.5,3.58524]
[1727207567517,2.33989441,2649.9,2649.5,3.2078]
[1727207567723,0.37743,2649.6,2649.3,0.37747]
[1727207568025,0.3868,2649.5,2649.3,0.37746]
[1727207568223,0.76424,2649.5,2649.2,3.58528]
[1727207568521,0.3868,2649.5,2649.3,0.37746]
[1727207569727,0.3868,2649.5,2649.4,0.37746]
[1727207569922,2.33989441,2649.9,2649.4,2.65]
[1727207570117,2.33989441,2649.9,2649.8,0.3774]
[1727207570520,0.3633,2649.9,2649.8,0.3774]
[1727207571016,0.3633,2649.9,2649.7,3.02741]
[1727207571215,0.3633,2649.9,2649.7,2.65]
[1727207571216,2.71728441,2649.9,2649.7,2.65]
[1727207571418,0.3774,2649.8,2649.6,3.2078]
[1727207571618,2.35399441,2649.8,2649.6,3.2078]
[1727207571813,0.37742,2649.7,2649.6,3.2078]
[1727207572220,2.33989441,2649.9,2649.8,0.3774]
[1727207572423,0.3633,2649.9,2649.6,5.8578]
[1727207572622,0.3633,2649.9,2649.8,0.3774]
[1727207573229,0.3633,2649.9,2649.8,3.0274]
[1727207575923,0.3868,2650.0,2649.9,0.37739]
[1727207576123,0.3868,2650.0,2649.9,3.58519]
[1727207577333,2.06459441,2650.7,2649.9,12.9814]
[1727207577633,0.76797,2650.7,2650.5,5.8578]
[1727207577929,0.3907,2650.7,2650.5,5.8578]
[1727207578128,0.37728,2650.7,2650.5,3.2078]
[1727207578427,3.2078,2651.2,2650.5,9.6306]
[1727207578428,0.37721,2651.2,2650.5,9.6306]
[1727207578631,0.37721,2651.2,2650.9,3.2078]
[1727207578632,0.7804,2651.1,2650.9,3.2078]
[1727207578823,0.7804,2651.1,2650.9,3.58504]
[1727207579221,0.37721,2651.2,2650.9,3.2078]
[1727207579430,0.3801,2651.4,2650.9,5.8578]
[1727207579620,0.3801,2651.4,2651.2,5.8578]
[1727207579834,1.97659441,2652.1,2651.2,5.8578]
[1727207580130,0.3801,2651.8,2651.5,3.2078]
[1727207580430,0.75722,2651.8,2651.5,3.2078]
[1727207580630,0.3801,2651.8,2651.5,3.2078]
[1727207581129,0.75722,2651.8,2651.5,3.2078]
[1727207581329,0.3801,2651.8,2651.7,2.65]
[1727207581834,3.2078,2652.5,2651.7,2.65]
[1727207581835,2.06459441,2652.7,2651.7,6.4212]
[1727207582041,0.7671,2652.4,2651.9,5.8578]
[1727207582428,0.7671,2652.4,2651.9,3.2078]
[1727207582726,3.02705,2652.3,2651.9,3.2078]
[1727207582929,0.37708,2652.1,2651.9,3.2078]
[1727207583119,0.37708,2652.1,2651.5,3.11515]
[1727207583120,2.65,2652.1,2651.5,3.2078]
[1727207583321,0.4002,2652.0,2651.5,4.3168]
[1727207583534,0.4002,2652.0,2651.5,7.34395]
[1727207583725,0.4002,2652.0,2651.5,6.23495]
[1727207583933,0.4002,2652.0,2651.5,5.8578]
[1727207584327,0.4002,2652.0,2651.5,3.2078]
[1727207584722,0.77729,2652.0,2651.5,3.2078]
[1727207584930,0.4002,2652.0,2651.5,3.58496]
[1727207585235,0.77729,2652.0,2651.5,5.8578]
[1727207585438,0.4002,2652.0,2651.5,6.23495]
[1727207585732,0.4002,2652.0,2651.5,5.8578]
[1727207586322,0.37712,2651.8,2651.5,5.8578]
[1727207586634,0.3888,2651.7,2651.5,5.8578]
[1727207588035,0.3888,2651.7,2651.5,3.2078]
[1727207588429,0.76594,2651.7,2651.5,3.2078]
[1727207589032,0.76594,2651.7,2651.2,3.2078]
[1727207589033,0.3888,2651.7,2651.2,3.2078]
[1727207589333,0.37718,2651.4,2651.2,3.2078]
[1727207589535,3.98167,2651.7,2651.2,3.2078]
[1727207589536,0.37717,2651.5,2651.2,3.2078]
[1727207589933,0.37719,2651.3,2651.2,3.2078]
[1727207590137,0.3677,2651.4,2651.2,3.2078]
[1727207590337,0.3677,2651.4,2651.0,3.752]
[1727207590338,0.3772,2651.3,2650.9,3.2078]
[1727207590633,3.0177,2651.4,2650.9,3.2078]
[1727207590839,0.37721,2651.2,2650.9,3.2078]
[1727207591139,0.77772,2651.1,2650.9,3.2078]
[1727207591639,0.37723,2651.0,2650.9,3.2078]
[1727207591936,0.37728,2650.7,2650.5,3.2078]
[1727207592139,0.3913,2650.9,2650.5,3.2078]
[1727207592337,0.37726,2650.8,2650.5,3.2078]
[1727207592632,0.3913,2650.9,2650.5,3.2078]
[1727207592836,0.37727,2650.8,2650.5,3.2078]
[1727207593230,0.3913,2650.9,2650.5,3.5851]
[1727207593430,4.15057,2651.9,2650.8,3.2078]
[1727207593626,0.7802,2651.7,2651.4,2.65]
[1727207593835,0.7802,2651.7,2651.4,3.2078]
[1727207594029,1.15734,2651.7,2651.4,3.2078]
[1727207594835,0.7802,2651.7,2651.4,3.2078]
[1727207595241,0.7802,2651.7,2651.4,5.8578]
[1727207595441,1.15733,2651.7,2651.4,3.2078]
[1727207595833,0.7802,2651.7,2651.4,5.8578]
[1727207596346,0.7802,2651.7,2651.4,6.23496]
[1727207596743,0.7802,2651.7,2651.4,5.8578]
[1727207597036,0.37708,2652.1,2651.6,0.37714]
[1727207597247,0.75508,2652.1,2651.7,3.2078]
[1727207597836,0.37709,2652.0,2651.7,3.2078]
[1727207598843,0.75508,2652.1,2651.7,3.2078]
[1727207599041,0.37709,2652.0,2651.7,3.2078]
[1727207600138,2.65,2651.9,2651.7,3.2078]
[1727207600343,0.37712,2651.8,2651.4,3.2078]
[1727207600540,0.37716,2651.5,2651.4,3.2078]
[1727207600740,40.8,2651.5,2650.9,3.2078]
[1727207600948,0.37721,2651.2,2650.9,3.2078]
[1727207601248,2.65,2651.3,2650.9,3.2078]
[1727207601544,2.65,2651.1,2650.9,3.2078]
[1727207601737,0.37723,2651.0,2650.9,3.2078]
[1727207603047,3.02722,2651.1,2650.9,3.2078]
[1727207603242,0.37721,2651.2,2650.9,3.2078]
[1727207603635,1.14608,2651.4,2650.9,3.58504]
[1727207603845,0.7689,2651.4,2651.2,3.2078]
[1727207605444,3.02714,2651.7,2651.2,3.585]
[1727207605445,0.37714,2651.7,2651.2,3.585]
[1727207605650,0.94279,2651.9,2651.2,3.2078]
[1727207605651,0.3724,2651.8,2651.2,3.2078]
[1727207605945,3.2078,2652.1,2651.6,3.02714]
[1727207605946,0.37708,2652.1,2651.6,3.02714]
[1727207606242,0.37707,2652.1,2651.8,3.2078]
[1727207606442,0.3708,2652.2,2651.8,3.2078]
[1727207606443,0.74787,2652.2,2651.8,3.2078]
[1727207606643,0.3708,2652.2,2651.8,3.2078]
[1727207606947,0.37708,2652.1,2651.8,3.2078]
[1727207608945,0.7518,2652.3,2651.8,5.8578]
[1727207609151,0.7518,2652.3,2651.8,6.2349]
[1727207609152,1.12885,2652.3,2651.8,6.2349]
[1727207609341,0.7518,2652.3,2651.8,6.2349]
[1727207609662,1.12885,2652.3,2651.8,6.2349]
[1727207609854,0.7518,2652.3,2651.8,5.8578]
[1727207610147,1.12885,2652.3,2651.8,3.58491]
[1727207611747,0.37706,2652.2,2651.8,3.2078]
[1727207611952,2.65,2652.2,2651.8,3.2078]
[1727207612149,0.37708,2652.1,2651.8,3.2078]
[1727207612342,2.65,2652.2,2651.8,3.2078]
[1727207612343,0.37709,2652.0,2651.8,3.2078]
[1727207613149,2.65,2652.0,2651.8,3.2078]
[1727207613351,3.02709,2652.0,2651.8,3.2078]
[1727207613545,2.65,2652.0,2651.8,3.2078]
[1727207613748,3.02709,2652.0,2651.8,3.2078]
[1727207613949,2.65,2652.1,2651.8,3.2078]
[1727207614347,2.65,2651.9,2651.8,3.2078]
[1727207614545,3.0271,2651.9,2651.8,3.2078]
[1727207614740,6.7983,2651.9,2651.8,3.2078]
[1727207615146,0.3771,2651.9,2651.8,3.2078]
[1727207615351,4.1483,2651.9,2651.8,3.2078]
[1727207615655,0.3771,2651.9,2651.8,3.2078]
[1727207616065,4.1483,2651.9,2651.8,3.2078]
[1727207616744,3.7712,2651.9,2651.8,3.2078]
[1727207616949,3.02709,2652.0,2651.8,3.2078]
[1727207617252,6.79829,2652.0,2651.8,3.2078]
[1727207617760,1.47316243,2652.3,2651.9,6.4212]
[1727207618060,0.088,2652.9,2652.8,0.37697]
[1727207618259,3.416,2653.5,2652.8,4.3058]
[1727207618558,0.373,2653.7,2653.1,3.2078]
[1727207619456,2.4734577,2654.3,2653.5,5.8578]
[1727207619643,3.02675,2654.4,2653.5,2.65]
[1727207619845,2.65,2654.2,2653.7,3.2078]
[1727207620051,2.65,2653.9,2653.7,3.2078]
[1727207620446,6.418,2653.9,2653.7,3.2078]
[1727207620647,3.768,2653.9,2653.7,3.2078]
[1727207621049,3.5839,2654.0,2653.3,3.2078]
[1727207621257,3.96071,2654.0,2653.3,3.2078]
[1727207621456,3.5839,2654.0,2653.3,3.2078]
[1727207623255,0.3761,2654.0,2653.6,3.2078]
[1727207623859,3.26,2653.9,2653.3,3.2078]
[1727207624758,3.6457,2653.9,2653.3,3.2078]
[1727207624948,0.3857,2653.9,2653.3,3.2078]
[1727207625151,0.3857,2653.9,2653.6,3.2078]
[1727207625350,4.1537,2653.9,2653.3,3.2078]
[1727207625552,0.3857,2653.9,2653.6,3.2078]
[1727207625757,0.3761,2654.0,2653.6,3.2078]
[1727207626960,0.3761,2654.0,2653.9,3.2078]
[1727207627665,0.372,2654.4,2653.9,3.2078]
[1727207628659,0.37677,2654.3,2653.9,3.2078]
[1727207629671,0.372,2654.4,2653.9,3.2078]
[1727207629958,0.7837,2654.5,2654.2,3.2078]
[1727207630163,1.54184,2654.5,2654.2,3.2078]
[1727207630562,0.37675,2654.4,2654.2,3.2078]
[1727207631067,1.1651,2654.5,2654.2,3.2078]
[1727207631068,4.14396,2654.3,2654.2,3.2078]
[1727207631263,0.37679,2654.1,2653.8,3.2078]
[1727207631568,6.4678,2654.3,2653.8,3.2078]
[1727207631760,3.26,2654.0,2653.8,3.2078]
[1727207632067,0.3764,2653.9,2653.8,3.2078]
[1727207632466,4.1444,2653.9,2653.8,3.2078]
[1727207632853,4.52122,2653.9,2653.8,3.2078]
[1727207633667,4.1444,2653.9,2653.8,3.2078]
[1727207633863,1.71807,2654.5,2653.8,3.2078]
[1727207633864,0.97811027,2654.9,2653.8,8.0728]
[1727207634063,0.76653,2654.6,2654.0,3.2078]
[1727207634266,0.3898,2654.6,2654.0,3.2078]
[1727207634560,0.3898,2654.6,2654.1,0.37679]
[1727207634765,0.3898,2654.6,2654.0,3.5846]
[1727207634966,0.76652,2654.6,2654.0,3.2078]
[1727207635155,0.3898,2654.6,2654.0,3.5846]
[1727207635961,0.3898,2654.6,2654.0,3.2078]
[1727207636171,0.37674,2654.5,2654.0,3.2078]
[1727207636366,0.37677,2654.3,2654.0,3.2078]
[1727207636670,0.37679,2654.1,2654.0,3.2078]
[1727207637267,3.768,2654.1,2653.7,3.2078]
[1727207637461,0.94195,2654.2,2653.7,3.2078]
[1727207637657,0.37681,2654.0,2653.7,3.2078]
[1727207637965,0.37679,2654.1,2653.7,3.2078]
[1727207639472,0.3727,2654.2,2653.7,3.2078]
[1727207639873,0.37679,2654.1,2653.7,3.2078]
[1727207640268,0.3727,2654.2,2653.7,3.2078]
[1727207640570,3.26,2653.8,2653.3,3.2078]
[1727207640776,0.37694,2653.1,2652.8,0.088]
[1727207640962,3.26,2653.4,2652.5,1.097]
[1727207641167,0.3885,2653.0,2652.7,3.2078]
[1727207641669,4.15,2653.5,2652.7,3.2078]
[1727207641670,0.97811027,2653.6,2652.9,0.37696]
[1727207641869,0.97811027,2653.6,2653.3,3.2078]
[1727207641870,0.3885,2653.6,2653.3,3.2078]
[1727207642082,0.97811027,2654.0,2653.3,6.4678]
[1727207642275,7.3168,2654.4,2653.6,3.2078]
[1727207642276,0.3885,2654.1,2653.6,3.2078]
[1727207642582,0.76529,2654.1,2653.6,3.2078]
[1727207642781,0.37681,2654.0,2653.3,3.2078]
[1727207643086,3.5963,2654.1,2653.3,3.2078]
[1727207643273,0.37681,2654.0,2653.3,3.5847]
[1727207644181,0.37681,2654.0,2653.3,3.2078]
[1727207644374,0.37681,2654.0,2653.3,3.5847]
[1727207644585,0.3885,2654.1,2653.7,3.2078]
[1727207644776,3.5712,2654.4,2653.6,3.26]
[1727207644777,0.3634,2654.4,2654.0,3.2078]
[1727207644981,0.3664,2654.6,2654.0,3.2078]
[1727207645474,0.37678,2654.2,2654.0,3.2078]
[1727207645681,0.37677,2654.3,2654.0,3.2078]
[1727207645873,0.37678,2654.2,2654.0,3.2078]
[1727207646375,6.9758,2654.1,2653.5,3.2078]
[1727207646577,0.3981,2654.1,2653.5,3.2078]
[1727207646969,0.3981,2654.1,2653.5,3.58467]
[1727207647168,0.3981,2654.1,2653.5,3.2078]
[1727207647377,0.7749,2654.1,2653.5,3.2078]
[1727207647876,0.3981,2654.1,2653.5,3.2078]
[1727207648180,0.3841,2654.0,2653.5,3.2078]
[1727207648380,0.94209,2653.8,2653.0,3.2958]
[1727207648576,0.94209,2653.8,2652.7,7.81079]
[1727207648577,0.3769,2653.4,2652.7,7.81079]
[1727207648779,0.76101,2653.3,2652.7,3.2078]
[1727207649079,3.2078,2653.2,2652.7,3.2078]
[1727207649380,0.37692,2653.2,2652.7,3.2078]
[1727207649771,0.37695,2653.0,2652.7,3.2078]
[1727207649976,0.16395,2653.3,2652.7,3.2078]
[1727207650178,0.37694,2653.1,2652.7,3.2078]
[1727207650372,0.37694,2653.1,2652.4,3.2078]
[1727207650373,3.2078,2653.0,2652.4,3.2078]
[1727207650574,0.37698,2652.8,2652.4,3.2078]
[1727207651476,1.10622,2653.3,2652.7,3.2078]
[1727207651477,0.16395,2653.3,2652.7,3.2078]
[1727207651680,0.16395,2653.3,2653.0,3.2078]
[1727207652785,3.2078,2653.8,2653.1,0.37692]
[1727207652976,3.2078,2653.8,2653.3,3.2078]
[1727207653177,3.6077,2653.8,2653.3,3.2078]
[1727207655296,0.3999,2653.8,2653.3,3.2078]
[1727207658194,0.3999,2653.8,2653.3,3.5847]
[1727207658391,0.3999,2653.8,2653.3,3.2078]
[1727207659794,0.97811027,2653.9,2653.3,3.2078]
[1727207659992,0.97811027,2654.0,2653.6,3.2078]
[1727207660392,0.37684,2653.8,2653.6,3.2078]
[1727207660588,1.35493027,2653.9,2653.6,3.2078]
[1727207660792,0.97811027,2653.9,2653.6,3.2078]
[1727207660993,1.35493027,2653.9,2653.6,3.2078]
[1727207661287,0.3681,2654.1,2653.6,3.2078]
[1727207661288,0.97811027,2653.8,2653.6,3.2078]
[1727207661905,5.12295027,2653.8,2653.6,3.2078]
[1727207662403,0.97811027,2653.7,2653.6,3.2078]
[1727207662795,4.74611027,2653.7,2653.6,3.2078]
[1727207663301,3.768,2653.7,2653.6,3.2078]
[1727207663696,4.14485,2653.7,2653.6,3.2078]
[1727207663899,1.75911035,2654.0,2653.6,12.9758]
[1727207664100,8.48715275,2654.9,2653.9,5.17562775]
[1727207664101,2.05886265,2654.9,2653.9,5.17562775]
[1727207664294,0.088,2654.9,2654.8,3.2078]
[1727207664602,0.21490781,2654.7,2654.5,3.2078]
[1727207664799,3.2078,2655.6,2654.5,3.2078]
[1727207665006,0.21490781,2655.0,2654.8,3.2078]
[1727207665201,0.21490781,2655.1,2654.8,3.2078]
[1727207666401,3.2078,2655.6,2654.9,3.7664]
[1727207666602,0.21490781,2655.4,2654.8,3.2078]
[1727207667000,0.21490781,2655.4,2655.1,3.2078]
[1727207667893,0.7772,2656.1,2655.2,3.7664]
[1727207668094,3.6098,2656.2,2655.5,3.2078]
[1727207668095,3.2078,2656.2,2655.5,3.2078]
[1727207668498,3.2078,2656.2,2655.5,6.9734]
[1727207668901,0.3762,2656.6,2655.6,3.7656]
[1727207669110,3.2078,2656.5,2655.6,3.7656]
[1727207669310,0.3762,2656.6,2655.6,9.7656]
[1727207670398,0.25259101,2655.7,2655.5,3.2078]
[1727207670602,0.21490781,2655.6,2655.5,3.2078]
[1727207670805,0.0376832,2655.7,2655.5,9.2078]
[1727207671106,0.0376832,2655.7,2655.6,3.7656]
[1727207671304,0.0376832,2655.7,2655.6,9.7656]
[1727207671511,0.0376832,2655.7,2655.5,3.2078]
[1727207671803,0.0376832,2655.7,2655.6,3.7656]
[1727207672012,3.2e-06,2655.7,2655.6,3.7656]
[1727207672205,3.2e-06,2655.7,2655.6,9.7656]
[1727207672612,3.2e-06,2655.7,2655.6,10.14218]
[1727207672798,3.2e-06,2655.7,2655.6,13.40218]
[1727207672998,3.2e-06,2655.7,2655.6,18.23368034]
[1727207673200,3.2e-06,2655.7,2655.6,16.07408034]
[1727207673403,3.2e-06,2655.7,2655.6,3.7656]
[1727207673606,3.2e-06,2655.7,2655.5,3.2078]
[1727207674296,3.2e-06,2655.7,2655.6,3.7656]
[1727207674504,3.2e-06,2655.7,2655.5,3.2078]
[1727207676014,3.2e-06,2655.7,2655.6,3.7656]
[1727207676203,3.2e-06,2655.7,2655.5,3.2078]
[1727207676204,3.2e-06,2655.7,2655.5,7.34999]